bitfinex-derivatives/quotes_BTCF0:USTF0_20250630
["timestamp","ask_amount","ask_price","bid_price","bid_amount"]
[1751312706324,0.48731431,107530.0,107520.0,0.29160429]
[1751312707135,0.58731431,107530.0,107520.0,0.07786777]
[1751312707334,0.3719973,107520.0,107510.0,0.1859975]
[1751312707535,2.47342794,107520.0,107510.0,0.1859975]
[1751312707737,2.23548043,107520.0,107510.0,0.1859975]
[1751312708236,2.47342794,107520.0,107510.0,0.1859975]
[1751312708436,0.1860014,107510.0,107500.0,0.35724249]
[1751312708635,0.76189642,107510.0,107500.0,0.35724249]
[1751312709038,0.2860014,107510.0,107500.0,0.35724249]
[1751312709241,0.76189642,107510.0,107500.0,0.35724249]
[1751312709546,0.52394891,107510.0,107500.0,0.35724249]
[1751312709948,0.42394891,107510.0,107500.0,0.35724249]
[1751312710139,0.52394891,107510.0,107500.0,0.35724249]
[1751312710544,0.52494891,107510.0,107500.0,0.35924249]
[1751312712449,0.52494891,107510.0,107500.0,0.42134249]
[1751312713046,0.001,107510.0,107500.0,1.25803751]
[1751312713348,0.57772,107510.0,107500.0,1.25803751]
[1751312713538,0.57772,107510.0,107500.0,1.57803751]
[1751312713738,0.001,107510.0,107500.0,1.57803751]
[1751312714849,0.001,107510.0,107500.0,1.63357576]
[1751312715851,0.001,107510.0,107500.0,1.47491223]
[1751312717653,0.001,107510.0,107500.0,1.15491223]
[1751312718049,0.001,107510.0,107500.0,0.83768074]
[1751312718259,0.001,107510.0,107500.0,1.17768074]
[1751312718646,0.001,107510.0,107500.0,0.83768074]
[1751312719747,0.001,107510.0,107500.0,1.21768074]
[1751312720052,0.001,107510.0,107500.0,0.83768074]
[1751312720955,0.001,107510.0,107500.0,1.19768074]
[1751312721253,0.001,107510.0,107500.0,0.83768074]
[1751312721554,0.1870014,107510.0,107500.0,0.83768074]
[1751312721756,0.001,107510.0,107500.0,0.83768074]
[1751312721946,0.001,107510.0,107500.0,1.18768074]
[1751312722343,0.001,107510.0,107500.0,1.50491223]
[1751312722755,0.001,107510.0,107500.0,1.15491223]
[1751312723156,0.001,107510.0,107500.0,1.18768074]
[1751312723454,0.001,107510.0,107500.0,1.50491223]
[1751312723857,0.001,107510.0,107500.0,1.15491223]
[1751312724059,0.50423289,107510.0,107500.0,0.83768074]
[1751312725054,0.1870014,107510.0,107500.0,1.18768074]
[1751312725357,0.50423289,107510.0,107500.0,1.18768074]
[1751312725757,0.50423289,107510.0,107500.0,1.20210915]
[1751312726658,0.1870014,107510.0,107500.0,1.20210915]
[1751312726858,0.001,107510.0,107500.0,1.20210915]
[1751312728059,0.1870014,107510.0,107500.0,1.20210915]
[1751312728261,0.001,107510.0,107500.0,1.20210915]
[1751312728558,0.001,107510.0,107500.0,1.51934064]
[1751312732757,0.001,107510.0,107500.0,1.50491223]
[1751312734063,0.001,107510.0,107500.0,1.52345735]
[1751312736359,0.001,107510.0,107500.0,1.44937398]
[1751312736754,0.001,107510.0,107500.0,2.02601398]
[1751312737173,0.001,107510.0,107500.0,2.10009735]
[1751312739865,0.01516811,107520.0,107510.0,0.1860014]
[1751312740168,0.01516811,107520.0,107510.0,1.42161124]
[1751312740569,1.43406252,107540.0,107530.0,0.1859668]
[1751312740759,1.43406252,107540.0,107530.0,0.5467668]
[1751312741868,1.11683103,107540.0,107530.0,0.5467668]
[1751312742069,1.43406252,107540.0,107530.0,0.5467668]
[1751312742371,1.19282252,107540.0,107530.0,0.5467668]
[1751312744663,1.19278252,107540.0,107530.0,0.5467668]
[1751312745359,0.11300153,107540.0,107530.0,0.5467668]
[1751312745562,0.11900153,107540.0,107530.0,0.58478959]
[1751312745762,0.11900153,107540.0,107530.0,0.61798959]
[1751312745965,0.11900153,107540.0,107530.0,0.64988959]
[1751312746366,0.11900153,107540.0,107530.0,0.6128668]
[1751312746566,0.11900153,107540.0,107530.0,0.9428668]
[1751312752679,0.30495103,107540.0,107530.0,0.9428668]
[1751312754477,0.30495103,107540.0,107530.0,0.9728668]
[1751312754880,0.11900153,107540.0,107530.0,0.9728668]
[1751312755379,0.30495103,107540.0,107530.0,0.6128668]
[1751312757280,0.62407411,107540.0,107530.0,0.6128668]
[1751312759181,0.30684262,107540.0,107530.0,0.6128668]
[1751312759386,0.62407411,107540.0,107530.0,0.9728668]
[1751312759775,0.54467278,107540.0,107530.0,1.21069696]
[1751312763282,0.54467278,107540.0,107530.0,0.9728668]
[1751312763481,0.54467278,107540.0,107530.0,1.21069696]
[1751312764679,0.26082328,107540.0,107530.0,1.21069696]
[1751312764872,0.26082328,107540.0,107530.0,1.24279696]
[1751312765377,0.44677278,107540.0,107530.0,1.24279696]
[1751312765584,0.44677278,107540.0,107530.0,0.88279696]
[1751312765881,0.68460294,107540.0,107530.0,0.9849668]
[1751312766079,0.74830294,107540.0,107530.0,0.9849668]
[1751312766282,0.74830294,107540.0,107530.0,0.68198959]
[1751312766483,0.77850294,107540.0,107530.0,0.61798959]
[1751312767182,0.77850294,107540.0,107530.0,0.64574418]
[1751312770284,0.77850294,107540.0,107530.0,0.61254418]
[1751312770484,1.1163331,107540.0,107530.0,0.61254418]
[1751312770684,1.1163331,107540.0,107530.0,0.57552139]
[1751312770887,0.87850294,107540.0,107530.0,0.57552139]
[1751312773892,0.72002326,107540.0,107530.0,0.57552139]
[1751312774090,0.72130296,107540.0,107530.0,0.57552139]
[1751312776384,0.72130296,107540.0,107530.0,0.61254418]
[1751312776592,0.40412232,107540.0,107530.0,0.61254418]
[1751312776791,0.72130296,107540.0,107530.0,0.61254418]
[1751312786303,0.72130296,107540.0,107530.0,0.57552139]
[1751312790914,0.72130296,107540.0,107530.0,0.21472139]
[1751312793914,0.87990906,107540.0,107530.0,0.21472139]
[1751312796419,0.93563748,107540.0,107530.0,0.1869668]
[1751312798012,0.93573391,107540.0,107530.0,0.1869668]
[1751312799117,0.45994717,107540.0,107530.0,0.1869668]
[1751312799317,0.93573391,107540.0,107530.0,0.1869668]
[1751312801719,0.93573391,107540.0,107530.0,0.5477668]
[1751312801909,0.74980549,107540.0,107530.0,0.5477668]
[1751312802114,1.02445212,107540.0,107530.0,0.90493762]
[1751312802314,1.02445212,107540.0,107530.0,1.22493762]
[1751312803627,0.78655875,107540.0,107530.0,1.22493762]
[1751312803817,0.78655875,107540.0,107530.0,0.98704425]
[1751312804323,1.1036639,107540.0,107530.0,0.98704425]
[1751312804522,0.78655875,107540.0,107530.0,0.98704425]
[1751312806023,1.1036639,107540.0,107530.0,0.98704425]
[1751312808127,1.1036639,107540.0,107530.0,1.02406704]
[1751312808528,0.78655875,107540.0,107530.0,1.02406704]
[1751312809027,1.1036639,107540.0,107530.0,1.02406704]
[1751312809830,0.78655875,107540.0,107530.0,0.70406704]
[1751312810029,1.1036639,107540.0,107530.0,0.70406704]
[1751312810221,1.2036639,107540.0,107530.0,0.70406704]
[1751312812125,1.2036639,107540.0,107530.0,0.34326704]
[1751312812328,1.2036639,107540.0,107530.0,0.30624425]
[1751312812534,1.2970639,107540.0,107530.0,0.27594425]
[1751312818233,1.2970639,107540.0,107530.0,0.31296704]
[1751312818734,1.2970639,107540.0,107530.0,0.67376704]
[1751312823141,0.87995875,107540.0,107530.0,1.02376704]
[1751312823445,1.1970639,107540.0,107530.0,1.02376704]
[1751312823735,1.35564413,107540.0,107530.0,0.91160973]
[1751312824127,1.35564413,107540.0,107530.0,0.67376704]
[1751312825341,1.45564413,107540.0,107530.0,0.67376704]
[1751312826141,1.45564413,107540.0,107530.0,0.64356704]
[1751312826340,1.45564413,107540.0,107530.0,0.28276704]
[1751312829346,1.35564413,107540.0,107530.0,0.28276704]
[1751312830535,1.45564413,107540.0,107530.0,0.28276704]
[1751312832442,1.35564413,107540.0,107530.0,0.63276704]
[1751312832745,0.87995875,107540.0,107530.0,0.63276704]
[1751312832944,1.35564413,107540.0,107530.0,0.28276704]
[1751312837948,1.45564413,107540.0,107530.0,0.28276704]
[1751312843252,0.87995875,107540.0,107530.0,0.28276704]
[1751312843453,1.35564413,107540.0,107530.0,0.28276704]
[1751312843651,0.11776925,107540.0,107530.0,0.64356704]
[1751312843851,0.78611875,107540.0,107530.0,1.21363228]
[1751312844155,1.02396144,107540.0,107530.0,1.24753228]
[1751312844546,1.02396144,107540.0,107530.0,0.67968959]
[1751312844747,1.02396144,107540.0,107530.0,0.91753228]
[1751312845743,1.02396144,107540.0,107530.0,1.27753228]
[1751312850356,1.02396144,107540.0,107530.0,1.26253228]
[1751312850658,1.02396144,107540.0,107530.0,1.32719652]
[1751312853158,1.02396144,107540.0,107530.0,1.31806646]
[1751312853659,1.02396144,107540.0,107530.0,0.72022377]
[1751312853863,1.02396144,107540.0,107530.0,0.90253228]
[1751312854961,1.02396144,107540.0,107530.0,1.23253228]
[1751312855255,1.26180413,107540.0,107530.0,0.66468959]
[1751312855452,1.35370413,107540.0,107530.0,0.66468959]
[1751312855653,1.35370413,107540.0,107530.0,0.63268959]
[1751312855853,1.35370413,107540.0,107530.0,0.98268959]
[1751312856057,1.35370413,107540.0,107530.0,0.63268959]
[1751312856256,1.35370413,107540.0,107530.0,0.60078959]
[1751312857161,1.45370413,107540.0,107530.0,0.62856022]
[1751312857662,1.45370413,107540.0,107530.0,0.23676022]
[1751312858264,1.45370413,107540.0,107530.0,0.19973743]
[1751312862575,1.81450413,107540.0,107530.0,0.19973743]
[1751312862771,1.81450413,107540.0,107530.0,0.1719668]
[1751312862969,1.81450413,107540.0,107530.0,0.19973743]
[1751312863274,1.81450413,107540.0,107530.0,0.1719668]
[1751312864079,1.81450413,107540.0,107530.0,0.19973743]
[1751312864470,1.45370413,107540.0,107530.0,0.19973743]
[1751312869979,0.69195463,107540.0,107530.0,0.79838012]
[1751312870177,0.02436925,107540.0,107530.0,1.17540291]
[1751312870384,0.59984925,107540.0,107530.0,1.26820291]
[1751312871076,0.83769194,107540.0,107530.0,1.26820291]
[1751312871581,0.59984925,107540.0,107530.0,1.26820291]
[1751312871769,0.83769194,107540.0,107530.0,1.26820291]
[1751312873782,0.26221194,107540.0,107530.0,1.26820291]
[1751312875282,0.02436925,107540.0,107530.0,1.26820291]
[1751312875471,0.26221194,107540.0,107530.0,1.26820291]
[1751312875883,0.26221194,107540.0,107530.0,1.24043228]
[1751312877681,0.26221194,107540.0,107530.0,1.00258959]
[1751312878076,0.26221194,107540.0,107530.0,1.24043228]
[1751312878278,0.26221194,107540.0,107530.0,1.2682072]
[1751312878479,0.26221194,107540.0,107530.0,1.24043228]
[1751312878986,0.26221194,107540.0,107530.0,1.00258959]
[1751312879172,0.26221194,107540.0,107530.0,1.24043228]
[1751312880186,0.02436925,107540.0,107530.0,1.24043228]
[1751312880384,0.26221194,107540.0,107530.0,1.24043228]
[1751312880980,0.00917129,107540.0,107530.0,1.81579228]
[1751312881186,0.00917129,107540.0,107530.0,1.87132646]
[1751312881483,0.00917129,107540.0,107530.0,2.07214636]
[1751312881680,0.00917129,107540.0,107530.0,2.01661218]
[1751312881879,0.00917129,107540.0,107530.0,2.08956843]
[1751312882075,0.00917129,107540.0,107530.0,2.38616843]
[1751312882276,0.00917129,107540.0,107530.0,2.38729555]
[1751312884191,0.00917129,107540.0,107530.0,1.91161017]
[1751312884481,0.00917129,107540.0,107530.0,2.38729555]
[1751312884720,0.00917129,107540.0,107530.0,2.31321218]
[1751312884920,0.00917129,107540.0,107530.0,2.07536949]
[1751312886481,0.00917129,107540.0,107530.0,2.13088221]
[1751312886992,0.00917129,107540.0,107530.0,2.20560095]
[1751312888788,0.00917129,107540.0,107530.0,1.96775826]
[1751312888988,0.00917129,107540.0,107530.0,2.20560095]
[1751312890595,0.00917129,107540.0,107530.0,2.44344364]
[1751312899197,9e-08,107540.0,107530.0,2.44344364]
[1751312899495,1.85213776,107560.0,107550.0,0.1859323]
[1751312899688,1.85213776,107560.0,107550.0,0.78457499]
[1751312899992,2.08998045,107560.0,107550.0,0.78457499]
[1751312900387,2.08998045,107560.0,107550.0,0.81235136]
[1751312901889,2.09498045,107560.0,107550.0,0.81335136]
[1751312903796,1.85426045,107560.0,107550.0,0.81335136]
[1751312908200,1.85426045,107560.0,107550.0,1.18038652]
[1751312908591,1.61641776,107560.0,107550.0,2.12626652]
[1751312908796,1.52041776,107560.0,107550.0,2.45564556]
[1751312908993,0.02041776,107560.0,107550.0,2.4500104]
[1751312909195,0.0329,107580.0,107550.0,2.2640781]
[1751312909499,0.0956,107580.0,107570.0,0.82889596]
[1751312909701,0.0956,107580.0,107570.0,1.52969596]
[1751312909901,0.0956,107580.0,107570.0,2.20564442]
[1751312910096,1.5956,107580.0,107570.0,2.20564442]
[1751312910498,1.5956,107580.0,107570.0,2.17784307]
[1751312910694,1.5956,107580.0,107570.0,2.18714877]
[1751312910894,1.5956,107580.0,107570.0,2.24266149]
[1751312911297,1.5986,107580.0,107570.0,2.24266149]
[1751312911492,1.5986,107580.0,107570.0,2.18714877]
[1751312911696,1.5956,107580.0,107570.0,2.18714877]
[1751312911896,1.5956,107580.0,107570.0,2.26811311]
[1751312912101,1.5956,107580.0,107570.0,1.95130608]
[1751312912304,1.5956,107580.0,107570.0,2.32362583]
[1751312913401,1.5956,107580.0,107570.0,2.26811311]
[1751312914407,1.5956,107580.0,107570.0,2.29582361]
[1751312917814,1.5956,107580.0,107570.0,1.97901658]
[1751312918112,1.5956,107580.0,107570.0,2.25471791]
[1751312920509,1.5956,107580.0,107570.0,2.21764945]
[1751312921006,1.5956,107580.0,107570.0,1.67963791]
[1751312921308,1.5956,107580.0,107570.0,1.86868242]
[1751312925008,1.5956,107580.0,107570.0,2.18548945]
[1751312925209,1.5956,107580.0,107570.0,1.86868242]
[1751312925410,1.5956,107580.0,107570.0,2.18548945]
[1751312925610,1.5956,107580.0,107570.0,1.86868242]
[1751312927410,1.5956,107580.0,107570.0,2.18548945]
[1751312928115,0.0956,107580.0,107570.0,2.21768945]
[1751312928313,0.0956,107580.0,107570.0,2.28078945]
[1751312928704,0.0956,107580.0,107570.0,2.31785791]
[1751312928905,0.0627,107580.0,107570.0,2.31785791]
[1751312929109,0.0309,107580.0,107570.0,2.31785791]
[1751312929813,2.15209406,107590.0,107580.0,0.1858808]
[1751312930014,1.60751406,107590.0,107580.0,1.21348783]
[1751312930208,1.60751406,107590.0,107580.0,1.30539833]
[1751312930410,2.09039406,107590.0,107580.0,1.30539833]
[1751312930605,1.51551406,107590.0,107580.0,1.30539833]
[1751312931003,1.51551406,107590.0,107580.0,1.34246679]
[1751312931313,1.51651406,107590.0,107580.0,1.34246679]
[1751312934318,1.54791406,107590.0,107580.0,1.34246679]
[1751312936420,1.54791406,107590.0,107580.0,1.31475629]
[1751312936620,1.57951406,107590.0,107580.0,1.31475629]
[1751312937518,1.57951406,107590.0,107580.0,1.37026901]
[1751312937921,1.57951406,107590.0,107580.0,1.31475629]
[1751312939021,1.57951406,107590.0,107580.0,1.37026901]
[1751312940720,1.51651406,107590.0,107580.0,1.37026901]
[1751312940917,1.51651406,107590.0,107580.0,1.05346198]
[1751312941123,1.51651406,107590.0,107580.0,1.37026901]
[1751312943721,1.51651406,107590.0,107580.0,1.27768783]
[1751312945719,1.54741406,107590.0,107580.0,1.27768783]
[1751312948629,1.54741406,107590.0,107580.0,0.9608808]
[1751312948829,1.54741406,107590.0,107580.0,1.27768783]
[1751312949328,1.51651406,107590.0,107580.0,1.27768783]
[1751312949527,1.51651406,107590.0,107580.0,1.30808783]
[1751312951432,1.51651406,107590.0,107580.0,1.36364383]
[1751312952932,0.01651406,107590.0,107580.0,1.36364383]
[1751312953132,0.0951,107600.0,107590.0,0.1858635]
[1751312953339,0.11062682,107600.0,107590.0,1.24828725]
[1751312953637,1.61062682,107600.0,107590.0,1.24828725]
[1751312954132,1.61062682,107600.0,107590.0,1.21124912]
[1751312955033,1.61062682,107600.0,107590.0,0.89444209]
[1751312955534,1.61062682,107600.0,107590.0,0.94444209]
[1751312955729,1.61062682,107600.0,107590.0,0.57444209]
[1751312956034,1.84819906,107600.0,107590.0,0.81201433]
[1751312956733,1.85019906,107600.0,107590.0,0.81201433]
[1751312957534,1.85019906,107600.0,107590.0,0.84905246]
[1751312957726,1.92941511,107600.0,107590.0,0.61148022]
[1751312958132,2.02941511,107600.0,107590.0,0.61148022]
[1751312958431,0.01852682,107600.0,107590.0,1.23775096]
[1751312958734,0.01852682,107600.0,107590.0,1.3954665]
[1751312961232,0.01852682,107600.0,107590.0,1.3399105]
[1751312962229,0.01852682,107600.0,107590.0,1.41404977]
[1751312962630,0.01852682,107600.0,107590.0,1.46960577]
[1751312962938,0.01852682,107600.0,107590.0,1.43256764]
[1751312964039,0.01852682,107600.0,107590.0,1.46958288]
[1751312964341,0.01852682,107600.0,107590.0,1.43256764]
[1751312965341,0.01852682,107600.0,107590.0,1.46957214]
[1751312965741,0.01852682,107600.0,107590.0,1.43256764]
[1751312966434,0.01852682,107600.0,107590.0,1.46956782]
[1751312966635,0.01852682,107600.0,107590.0,1.15277953]
[1751312966941,0.01852682,107600.0,107590.0,1.46956782]
[1751312971141,0.01852682,107600.0,107590.0,1.43256764]
[1751312971344,0.01852682,107600.0,107590.0,1.05387935]
[1751312971644,0.11452682,107600.0,107590.0,1.98333939]
[1751312973443,0.11452682,107600.0,107590.0,1.40765939]
[1751312973744,0.11452682,107600.0,107590.0,1.6356311]
[1751312974246,0.11452682,107600.0,107590.0,1.60782287]
[1751312974648,0.11452682,107600.0,107590.0,1.60790287]
[1751312975242,0.11452682,107600.0,107590.0,1.03206287]
[1751312975447,0.53131511,107600.0,107590.0,0.66507112]
[1751312975860,0.43131511,107600.0,107590.0,0.66507112]
[1751312976050,0.53131511,107600.0,107590.0,0.66507112]
[1751312976847,0.21452682,107600.0,107590.0,0.66507112]
[1751312977745,1.29312271,107600.0,107590.0,0.20238408]
[1751312977951,1.65392271,107600.0,107590.0,0.20238408]
[1751312979850,1.83980271,107600.0,107590.0,0.1858635]
[1751312983752,1.65392271,107600.0,107590.0,0.1858635]
[1751312988759,0.1858662,107590.0,107580.0,0.26011215]
[1751312989053,1.02805449,107590.0,107580.0,0.30658235]
[1751312989355,1.02805449,107590.0,107580.0,0.278816]
[1751312989554,0.66725449,107590.0,107580.0,0.278816]
[1751312989755,1.02805449,107590.0,107580.0,0.278816]
[1751312990748,1.02805449,107590.0,107580.0,0.528816]
[1751312998160,1.05885449,107590.0,107580.0,0.528816]
[1751312998462,1.1324,107590.0,107580.0,0.528816]
[1751312999160,0.5562,107590.0,107580.0,0.528816]
[1751312999358,1.318266,107590.0,107580.0,0.528816]
[1751312999552,1.1324,107590.0,107580.0,0.528816]
[1751312999753,1.1324,107590.0,107580.0,0.593016]
[1751313000048,0.709266,107590.0,107580.0,0.624416]
[1751313000254,0.1858833,107580.0,107570.0,0.21365645]
[1751313000459,0.30097558,107580.0,107570.0,0.30660465]
[1751313000658,1.28924387,107580.0,107570.0,0.30660465]
[1751313000859,1.65004387,107580.0,107570.0,0.2788383]
[1751313001063,0.75557558,107580.0,107570.0,0.2788383]
[1751313001254,1.07236387,107580.0,107570.0,0.2788383]
[1751313001651,1.65204387,107580.0,107570.0,0.2788383]
[1751313002159,0.97449558,107580.0,107570.0,0.2788383]
[1751313002359,1.29128387,107580.0,107570.0,0.3091383]
[1751313002663,1.29128387,107580.0,107570.0,0.3111383]
[1751313003656,0.01509228,107580.0,107570.0,1.39019294]
[1751313004761,0.01509228,107580.0,107570.0,1.39941834]
[1751313007959,0.01509228,107580.0,107570.0,1.45497434]
[1751313008659,0.01509228,107580.0,107570.0,1.39941834]
[1751313009565,0.01509228,107580.0,107570.0,2.03557434]
[1751313010665,0.01509228,107580.0,107570.0,1.99858259]
[1751313014273,0.01509228,107580.0,107570.0,2.03561644]
[1751313015472,0.01509228,107580.0,107570.0,1.13822815]
[1751313015770,0.01509228,107580.0,107570.0,1.45501644]
[1751313017372,0.01652682,107600.0,107590.0,0.1858659]
[1751313017673,0.01652682,107600.0,107590.0,1.29075419]
[1751313018669,0.01652682,107600.0,107590.0,1.36478317]
[1751313018867,0.01652682,107600.0,107590.0,1.72558317]
[1751313019173,0.01652682,107600.0,107590.0,1.73491478]
[1751313019872,0.01852682,107600.0,107590.0,1.73491478]
[1751313020272,0.01852682,107600.0,107590.0,1.41812649]
[1751313021374,0.01852682,107600.0,107590.0,1.73491478]
[1751313022076,0.01852682,107600.0,107590.0,2.31623478]
[1751313022377,0.01852682,107600.0,107590.0,1.72558317]
[1751313022572,0.62116371,107600.0,107590.0,1.31149488]
[1751313022776,0.71376371,107600.0,107590.0,1.89273488]
[1751313023276,0.39697542,107600.0,107590.0,1.89273488]
[1751313024073,0.39697542,107600.0,107590.0,1.53193488]
[1751313024378,0.11112682,107600.0,107590.0,1.19345419]
[1751313024778,0.11112682,107600.0,107590.0,1.25665419]
[1751313025182,0.01852682,107600.0,107590.0,0.9398659]
[1751313025380,0.01852682,107600.0,107590.0,1.25665419]
[1751313026081,0.01852682,107600.0,107590.0,1.83761419]
[1751313026284,0.01852682,107600.0,107590.0,1.83753419]
[1751313027079,0.01852682,107600.0,107590.0,1.86530689]
[1751313027782,0.01852682,107600.0,107590.0,1.9378252]
[1751313028687,0.01852682,107600.0,107590.0,1.62103691]
[1751313029089,0.01852682,107600.0,107590.0,1.65807076]
[1751313032079,0.01852682,107600.0,107590.0,1.97485905]
[1751313035598,0.01852682,107600.0,107590.0,2.33565905]
[1751313035895,0.01852682,107600.0,107590.0,2.36344235]
[1751313036192,0.003,107600.0,107590.0,2.36344235]
[1751313036394,0.01514859,107620.0,107610.0,0.1858313]
[1751313036696,0.01514859,107620.0,107610.0,1.25661959]
[1751313036697,0.11514859,107620.0,107610.0,1.25661959]
[1751313036887,1.5632,107630.0,107620.0,0.1858141]
[1751313037087,0.3489968,107630.0,107620.0,0.2503141]
[1751313037496,0.3803968,107630.0,107620.0,0.2503141]
[1751313037695,0.1946,107630.0,107620.0,0.2190141]
[1751313038798,0.0946,107630.0,107620.0,0.2190141]
[1751313039297,0.0946,107630.0,107620.0,0.5798141]
[1751313039998,0.0986,107630.0,107620.0,0.5798141]
[1751313040392,0.2843968,107630.0,107620.0,0.1858141]
[1751313040992,0.70118509,107630.0,107620.0,0.1858141]
[1751313042003,1.06198509,107630.0,107620.0,0.1858141]
[1751313042800,1.20134089,107630.0,107620.0,0.185814]
[1751313043299,1.25708024,107630.0,107620.0,0.185814]
[1751313048503,1.20134089,107630.0,107620.0,0.185814]
[1751313049902,0.1858313,107610.0,107600.0,0.69988658]
[1751313050103,1.5589154,107610.0,107600.0,0.35294788]
[1751313050406,1.0715754,107610.0,107600.0,0.35294788]
[1751313050902,0.8857441,107610.0,107600.0,0.35294788]
[1751313051107,0.43715581,107610.0,107600.0,0.41644788]
[1751313051304,0.43715581,107610.0,107600.0,0.77724788]
[1751313051305,0.07635581,107610.0,107600.0,0.77724788]
[1751313051506,0.07635581,107610.0,107600.0,0.81428173]
[1751313051700,0.07635581,107610.0,107600.0,1.46107002]
[1751313051895,0.01545581,107610.0,107600.0,1.46107002]
[1751313052308,0.01645581,107610.0,107600.0,1.46107002]
[1751313052808,0.01645581,107610.0,107600.0,1.43333614]
[1751313054212,0.01645581,107610.0,107600.0,1.45185829]
[1751313054611,0.01645581,107610.0,107600.0,1.13507]
[1751313054811,0.01645581,107610.0,107600.0,1.45185829]
[1751313057012,0.01645581,107610.0,107600.0,1.48880208]
[1751313058509,1.51645581,107610.0,107600.0,1.48880208]
[1751313060615,1.51645581,107610.0,107600.0,1.45185829]
[1751313062712,0.01645581,107610.0,107600.0,1.4683708]
[1751313072511,0.0937,107630.0,107620.0,0.1858121]
[1751313072706,0.0619,107630.0,107620.0,1.19340039]
[1751313072914,1.5619,107630.0,107620.0,1.22520039]
[1751313073116,1.5619,107630.0,107620.0,1.28332841]
[1751313073117,1.501,107630.0,107620.0,1.28332841]
[1751313073512,1.501,107630.0,107620.0,0.96654012]
[1751313073712,1.501,107630.0,107620.0,1.28332841]
[1751313074020,1.506,107630.0,107620.0,1.28432841]
[1751313074318,1.506,107630.0,107620.0,1.00451081]
[1751313074518,1.506,107630.0,107620.0,1.3307995]
[1751313075111,0.006,107630.0,107620.0,1.3307995]
[1751313075507,0.004,107630.0,107620.0,1.3297995]
[1751313079930,0.004,107630.0,107620.0,1.01301121]
[1751313080222,0.004,107630.0,107620.0,1.3297995]
[1751313084122,0.004,107630.0,107620.0,1.29282881]
[1751313084320,0.0361,107630.0,107620.0,1.29282881]
[1751313087127,0.0681,107630.0,107620.0,1.29282881]
[1751313088430,0.2865946,107630.0,107620.0,1.49332052]
[1751313089330,0.1008,107630.0,107620.0,1.49332052]
[1751313089927,0.1008,107630.0,107620.0,1.81010881]
[1751313090129,0.1008,107630.0,107620.0,1.87190881]
[1751313091726,0.1008,107630.0,107620.0,1.9088795]
[1751313093029,0.1008,107630.0,107620.0,1.87190881]
[1751313094133,0.1008,107630.0,107620.0,1.9088795]
[1751313095225,0.1008,107630.0,107620.0,1.3293995]
[1751313095431,0.1008,107630.0,107620.0,1.9095595]
[1751313096328,0.2865946,107630.0,107620.0,1.9095595]
[1751313097032,0.1008,107630.0,107620.0,1.9095595]
[1751313098134,0.2865944,107630.0,107620.0,1.9095595]
[1751313098332,0.2865944,107630.0,107620.0,1.59277121]
[1751313098735,0.1008,107630.0,107620.0,1.59277121]
[1751313099336,0.2865942,107630.0,107620.0,1.59277121]
[1751313099536,0.1008,107630.0,107620.0,1.59277121]
[1751313100626,0.1008,107630.0,107620.0,1.9095595]
[1751313101339,0.1008,107630.0,107620.0,1.88183148]
[1751313102438,0.1008,107630.0,107620.0,1.93738748]
[1751313104137,0.1008,107630.0,107620.0,1.90957124]
[1751313107045,0.1008,107630.0,107620.0,1.59278295]
[1751313107339,0.60338269,107630.0,107620.0,0.61132255]
[1751313107539,0.70338269,107630.0,107620.0,0.57435186]
[1751313107741,1.28210269,107630.0,107620.0,0.57435186]
[1751313107942,1.64290269,107630.0,107620.0,0.21355186]
[1751313108140,1.88546269,107630.0,107620.0,0.21355136]
[1751313108340,1.88546269,107630.0,107620.0,0.02773976]
[1751313108537,0.1858116,107620.0,107610.0,0.54712585]
[1751313108737,1.02449989,107620.0,107610.0,0.36131045]
[1751313108937,1.02449989,107620.0,107610.0,0.32433976]
[1751313110438,1.02449989,107620.0,107610.0,0.2966]
[1751313110639,0.1858289,107610.0,107600.0,0.34346365]
[1751313110844,1.63483719,107610.0,107600.0,0.34346365]
[1751313111346,1.63483719,107610.0,107600.0,0.29700265]
[1751313112447,1.64433009,107610.0,107600.0,0.26003196]
[1751313112645,1.3275418,107610.0,107600.0,0.26003196]
[1751313112847,1.64433009,107610.0,107600.0,0.26003196]
[1751313113248,1.64433009,107610.0,107600.0,0.26203196]
[1751313114147,1.64433009,107610.0,107600.0,0.32681889]
[1751313115247,1.64433009,107610.0,107600.0,0.27126289]
[1751313117353,1.64433009,107610.0,107600.0,0.29896561]
[1751313118151,0.69491719,107610.0,107600.0,0.29896561]
[1751313118353,0.2781289,107610.0,107600.0,0.27126289]
[1751313119652,0.8567289,107610.0,107600.0,0.30186289]
[1751313120150,0.8567289,107610.0,107600.0,0.35741889]
[1751313122752,1.27351719,107610.0,107600.0,0.35741889]
[1751313124752,1.27351719,107610.0,107600.0,0.32681889]
[1751313126155,0.9567289,107610.0,107600.0,0.32681889]
[1751313126356,1.27351719,107610.0,107600.0,0.32681889]
[1751313127252,1.63431719,107610.0,107600.0,0.06667379]
[1751313128058,1.63431719,107610.0,107600.0,0.0297031]
[1751313129359,1.63431719,107610.0,107600.0,0.0277031]
[1751313130860,1.3175289,107610.0,107600.0,0.2135491]
[1751313131161,1.63431719,107610.0,107600.0,0.2135491]
[1751313131660,1.63451719,107610.0,107600.0,0.2135491]
[1751313132364,1.63451719,107610.0,107600.0,0.25051979]
[1751313132759,1.05571719,107610.0,107600.0,0.25051979]
[1751313132958,1.87651719,107610.0,107600.0,0.25051979]
[1751313134064,1.29787719,107610.0,107600.0,0.25051979]
[1751313134266,1.87663719,107610.0,107600.0,0.2135491]
[1751313137060,1.51583719,107610.0,107600.0,0.2135491]
[1751313137274,1.87663719,107610.0,107600.0,0.2135491]
[1751313137575,1.87663719,107610.0,107600.0,0.06467379]
[1751313137876,1.87663719,107610.0,107600.0,0.0277031]
[1751313140272,1.5598489,107610.0,107600.0,0.2135491]
[1751313140477,1.87663719,107610.0,107600.0,0.2135491]
[1751313141070,1.87663719,107610.0,107600.0,0.0277031]
[1751313142966,1.87663719,107610.0,107600.0,0.2135491]
[1751313143677,1.87663719,107610.0,107600.0,0.0277031]
[1751313144973,1.87663719,107610.0,107600.0,0.06467379]
[1751313147686,0.185846,107600.0,107590.0,0.3529464]
[1751313147885,0.66753429,107600.0,107590.0,0.3529464]
[1751313148080,0.66753429,107600.0,107590.0,0.3064808]
[1751313148280,0.66753429,107600.0,107590.0,0.2908152]
[1751313148477,0.69873429,107600.0,107590.0,0.2908152]
[1751313148988,0.69873429,107600.0,107590.0,0.2928152]
[1751313149187,1.05953429,107600.0,107590.0,0.2463508]
[1751313149387,1.05953429,107600.0,107590.0,0.2186477]
[1751313149588,1.05953429,107600.0,107590.0,0.1878477]
[1751313150175,0.69873429,107600.0,107590.0,0.1878477]
[1751313150684,0.381946,107600.0,107590.0,0.1878477]
[1751313150988,0.69873429,107600.0,107590.0,0.2493477]
[1751313151190,0.69873429,107600.0,107590.0,0.2796477]
[1751313152590,1.05953429,107600.0,107590.0,0.2796477]
[1751313152994,0.69873429,107600.0,107590.0,0.2796477]